[Event "41st Jacques-Lemans-Open 2022"]
[Site "St. Veit/Glan"]
[Date "2022.07.14"]
[Round "7.2"]
[White "Windhager, Hannes"]
[Black "Feinig, Mario"]
[Result "1/2-1/2"]
[ECO "B31"]
[WhiteElo "2244"]
[BlackElo "2141"]
[Annotator "ChessBase"]
[PlyCount "103"]
[EventDate "2022.07.09"]
[EventType "swiss"]
[EventCountry "AUT"]
[SourceTitle "playchess.com"]
[Source "ChessBase"]
[SourceQuality "1"]
[TimeControl "40/5400+30:1800+30"]

1. e4 {[%emt 0:00:03]} c5 {[%emt 0:00:05]} 2. Nf3 {[%emt 0:00:07]} Nc6 {[%emt 0:00:06]} 3. Bb5 {[%emt 0:00:12]} g6 {[%emt 0:00:13]} 4. O-O {[%emt 0:00:10]} Bg7 {[%emt 0:00:06]} 5. c3 {[%emt 0:00:11]} e5 {[%emt 0:00:19]} 6. d4 {[%emt 0:00:42]} cxd4 {[%emt 0:00:13]} 7. cxd4 {[%emt 0:00:05]} exd4 {[%emt 0:00:10]} 8. Bf4 {[%emt 0:00:40]} a6 {[%emt 0:00:21]} 9. Ba4 {[%emt 0:00:28]} Nge7 {[%emt 0:00:24]} 10. Bd6 {[%emt 0:00:23]} b5 {[%emt 0:00:35]} 11. Bb3 {[%emt 0:00:10]} Bb7 {[%emt 0:00:19]} 12. Ng5 {[%emt 0:00:59]} O-O {[%emt 0:03:48]} 13. Qf3 {[%emt 0:00:09]} Qe8 {[%emt 0:03:47]} 14. Qg3 {[%emt 0:00:17]} h6 {[%emt 0:07:35]} 15. Nf3 {[%emt 0:00:29]} Na5 {[%emt 0:06:26]} 16. Nbd2 {[%emt 0:01:04]} Nxb3 {[%emt 0:05:51]} 17. Nxb3 {[%emt 0:00:53]} Bxe4 {[%emt 0:00:52]} 18. Nfxd4 {[%emt 0:03:26]} Nf5 {[%emt 0:01:14]} 19. Nxf5 {[%emt 0:02:21]} Bxf5 {[%emt 0:00:04]} 20. Rfe1 {[%emt 0:15:22]} Qd8 {[%emt 0:00:39]} 21. Bxf8 {[%emt 0:01:04]} Qxf8 {[%emt 0:00:14]} 22. Re2 {[%emt 0:04:11]} Rc8 {[%emt 0:11:04]} 23. Qe3 {[%emt 0:13:31]} Qb4 {[%emt 0:04:37]} 24. Rc1 {[%emt 0:06:24]} Rxc1+ {[%emt 0:04:47]} 25. Qxc1 {[%emt 0:00:46]} Qa4 {[%emt 0:02:49]} 26. Qa1 {[%emt 0:21:53]} Be6 {[%emt 0:00:54]} 27. Re1 {[%emt 0:07:11]} Qc4 {[%emt 0:01:37]} 28. Rd1 {[%emt 0:09:42]} Be5 {[%emt 0:26:30]} 29. Qc1 {[%emt 0:01:43]} Qh4 {[%emt 0:02:01]} 30. g3 {[%emt 0:00:08]} Qg4 {[%emt 0:02:30]} 31. Re1 {[%emt 0:01:00]} Bg7 {[%emt 0:07:28]} 32. Qd2 {[%emt 0:05:21]} Qh5 {[%emt 0:03:40]} 33. f4 {[%emt 0:02:25]} Qf3 {[%emt 0:03:08]} 34. Re3 {[%emt 0:00:10]} Qc6 {[%emt 0:00:45]} 35. Nd4 {[%emt 0:01:37]} Qd5 {[%emt 0:00:03]} 36. Rd3 {[%emt 0:00:28]} Qc5 {[%emt 0:01:50]} 37. b4 {[%emt 0:00:26]} Qb6 {[%emt 0:00:19]} 38. Qe3 {[%emt 0:00:19]} Bxa2 {[%emt 0:00:51]} 39. Nf5 {[%emt 0:01:39]} Qxe3+ {[%emt 0:01:10]} 40. Nxe3 {[%emt 0:00:05]} Be6 {[%emt 0:00:17]} 41. g4 {[%emt 0:18:00]} f5 {[%emt 0:11:08]} 42. gxf5 {[%emt 0:00:10]} gxf5 {[%emt 0:00:01]} 43. Nd5 {[%emt 0:02:29]} Bf8 {[%emt 0:05:16]} 44. Nc7 {[%emt 0:04:10]} Bxb4 {[%emt 0:00:59]} 45. Nxa6 {[%emt 0:00:09]} Ba5 {[%emt 0:00:40]} 46. Kg2 {[%emt 0:00:49]} Kf7 {[%emt 0:06:14]} 47. Nc5 {[%emt 0:00:39]} Ke7 {[%emt 0:00:30]} 48. Nxe6 {[%emt 0:03:07]} Kxe6 {[%emt 0:02:51]} 49. Kf3 {[%emt 0:01:00]} d6 {[%emt 0:01:15]} 50. Ra3 {[%emt 0:01:39]} Bd2 {[%emt 0:00:54]} 51. Rd3 {[%emt 0:00:24]} Ba5 {[%emt 0:00:18]} 52. Ra3 {[%emt 0:00:08]} 1/2-1/2

[Event "41st Jacques-Lemans-Open 2022"]
[Site "St. Veit/Glan"]
[Date "2022.07.14"]
[Round "7.3"]
[White "Riemelmoser, Franz"]
[Black "Koelber, Daniel"]
[Result "1/2-1/2"]
[ECO "A37"]
[WhiteElo "2237"]
[BlackElo "2176"]
[Annotator "ChessBase"]
[PlyCount "26"]
[EventDate "2022.07.09"]
[EventType "swiss"]
[EventCountry "AUT"]
[SourceTitle "playchess.com"]
[Source "ChessBase"]
[SourceQuality "1"]
[TimeControl "40/5400+30:1800+30"]

1. c4 {[%emt 0:00:04]} g6 {[%emt 0:00:33]} 2. Nc3 {[%emt 0:00:37]} c5 {[%emt 0:00:12]} 3. g3 {[%emt 0:02:04]} Bg7 {[%emt 0:00:18]} 4. Bg2 {[%emt 0:00:10]} Nc6 {[%emt 0:00:05]} 5. Nf3 {[%emt 0:00:42]} e6 {[%emt 0:00:27]} 6. O-O {[%emt 0:02:31]} Nge7 {[%emt 0:00:13]} 7. d3 {[%emt 0:00:29]} d5 {[%emt 0:01:45]} 8. Bd2 {[%emt 0:01:15]} O-O {[%emt 0:05:11]} 9. a3 {[%emt 0:00:23]} b6 {[%emt 0:24:14]} 10. Rb1 {[%emt 0:00:53]} Bb7 {[%emt 0:01:05]} 11. b4 {[%emt 0:00:54]} cxb4 {[%emt 0:01:26]} 12. axb4 {[%emt 0:01:59]} dxc4 {[%emt 0:01:58]} 13. dxc4 {[%emt 0:01:28]} a5 {[%emt 0:04:27]} 1/2-1/2

[Event "41st Jacques-Lemans-Open 2022"]
[Site "St. Veit/Glan"]
[Date "2022.07.14"]
[Round "7.4"]
[White "Miazhynski, Yuri"]
[Black "Vojinov, Danijel"]
[Result "0-1"]
[ECO "B22"]
[WhiteElo "2166"]
[BlackElo "2201"]
[Annotator "ChessBase"]
[PlyCount "76"]
[EventDate "2022.07.09"]
[EventType "swiss"]
[EventCountry "AUT"]
[SourceTitle "playchess.com"]
[Source "ChessBase"]
[SourceQuality "1"]
[TimeControl "40/5400+30:1800+30"]

1. e4 {[%emt 0:00:06]} c5 {[%emt 0:00:27]} 2. c3 {[%emt 0:00:29]} Nf6 {[%emt 0:02:21]} 3. e5 {[%emt 0:00:32]} Nd5 {[%emt 0:00:35]} 4. d4 {[%emt 0:00:22]} cxd4 {[%emt 0:00:56]} 5. cxd4 {[%emt 0:00:06]} e6 {[%emt 0:00:33]} 6. Nf3 {[%emt 0:03:43]} Nc6 {[%emt 0:01:58]} 7. a3 {[%emt 0:05:31]} d6 {[%emt 0:03:58]} 8. Bd3 {[%emt 0:01:59]} dxe5 {[%emt 0:05:12]} 9. dxe5 {[%emt 0:00:34]} Qc7 {[%emt 0:00:52]} 10. O-O {[%emt 0:03:22]} Bd7 {[%emt 0:04:54]} 11. Qe2 {[%emt 0:26:24]} Na5 {[%emt 0:09:13]} 12. Nc3 {[%emt 0:10:38]} Nxc3 {[%emt 0:02:23]} 13. bxc3 {[%emt 0:00:32]} Nb3 {[%emt 0:02:45]} 14. Ra2 {[%emt 0:00:12]} Nxc1 {[%emt 0:01:09]} 15. Rxc1 {[%emt 0:00:03]} Bc5 {[%emt 0:02:48]} 16. Re1 {[%emt 0:03:50]} Rd8 {[%emt 0:05:57]} 17. Bb1 {[%emt 0:17:06]} Bc6 {[%emt 0:03:32]} 18. h4 {[%emt 0:02:31]} Bd5 {[%emt 0:09:08]} 19. Rd2 {[%emt 0:03:06]} Bxa3 {[%emt 0:03:36]} 20. Qe3 {[%emt 0:09:16]} Be7 {[%emt 0:07:56]} 21. Nd4 {[%emt 0:02:07]} a6 {[%emt 0:04:41]} 22. h5 {[%emt 0:00:16]} g6 {[%emt 0:04:31]} 23. f4 {[%emt 0:00:47]} Bc5 {[%emt 0:03:17]} 24. g4 {[%emt 0:02:02]} gxh5 {[%emt 0:01:23]} 25. g5 {[%emt 0:00:10]} Qe7 {[%emt 0:01:55]} 26. Kh2 {[%emt 0:00:36]} h6 {[%emt 0:01:35]} 27. Rg1 {[%emt 0:00:49]} Rg8 {[%emt 0:01:38]} 28. Kh3 {[%emt 0:02:11]} hxg5 {[%emt 0:01:53]} 29. fxg5 {[%emt 0:00:16]} Bxd4 {[%emt 0:01:23]} 30. Rxd4 {[%emt 0:00:33]} Rc8 {[%emt 0:01:20]} 31. g6 {[%emt 0:00:37]} fxg6 {[%emt 0:01:06]} 32. Bxg6+ {[%emt 0:01:40]} Kd8 {[%emt 0:01:27]} 33. c4 {[%emt 0:01:34]} Rxc4 {[%emt 0:01:20]} 34. Rxc4 {[%emt 0:00:56]} Bxc4 {[%emt 0:00:27]} 35. Rd1+ {[%emt 0:00:34]} Bd5 {[%emt 0:02:07]} 36. Qb6+ {[%emt 0:01:47]} Kc8 {[%emt 0:01:12]} 37. Rc1+ {[%emt 0:00:58]} Kb8 {[%emt 0:00:30]} 38. Bd3 {[%emt 0:00:30]} Bg2+ {[%emt 0:00:43]} 0-1

[Event "41st Jacques-Lemans-Open 2022"]
[Site "St. Veit/Glan"]
[Date "2022.07.14"]
[Round "7.6"]
[White "Gschiel, Alexander"]
[Black "Hoffmann, Sebastian"]
[Result "1-0"]
[ECO "D11"]
[WhiteElo "2215"]
[BlackElo "2148"]
[Annotator "ChessBase"]
[PlyCount "105"]
[EventDate "2022.07.09"]
[EventType "swiss"]
[EventCountry "AUT"]
[SourceTitle "playchess.com"]
[Source "ChessBase"]
[SourceQuality "1"]
[TimeControl "40/5400+30:1800+30"]

1. d4 {[%emt 0:00:07]} d5 {[%emt 0:00:04]} 2. c4 {[%emt 0:00:18]} c6 {[%emt 0:00:05]} 3. Nf3 {[%emt 0:00:19]} Nf6 {[%emt 0:00:05]} 4. Qb3 {[%emt 0:00:14]} dxc4 {[%emt 0:04:25]} 5. Qxc4 {[%emt 0:00:21]} Bg4 {[%emt 0:00:06]} 6. Nc3 {[%emt 0:06:15]} Nbd7 {[%emt 0:02:20]} 7. Qd3 {[%emt 0:09:26]} Qa5 {[%emt 0:05:15]} 8. Nd2 {[%emt 0:10:38]} Qc7 {[%emt 0:17:47]} 9. Nc4 {[%emt 0:06:15]} O-O-O {[%emt 0:09:19]} 10. Qc2 {[%emt 0:08:36]} e5 {[%emt 0:02:27]} 11. g3 {[%emt 0:05:23]} Nd5 {[%emt 0:15:15]} 12. dxe5 {[%emt 0:15:40]} Nxe5 {[%emt 0:01:24]} 13. Qe4 {[%emt 0:09:18]} Bb4 {[%emt 0:21:30]} 14. Bd2 {[%emt 0:12:49]} Nf3+ {[%emt 0:05:16]} 15. Kd1 {[%emt 0:01:50]} Nf6 {[%emt 0:03:46]} 16. Qe3 {[%emt 0:06:33]} Bxc3 {[%emt 0:01:41]} 17. exf3 {[%emt 0:00:37]} Bxd2 {[%emt 0:01:16]} 18. Nxd2 {[%emt 0:00:06]} Rhe8 {[%emt 0:00:53]} 19. Qxa7 {[%emt 0:01:00]} Bxf3+ {[%emt 0:01:16]} 20. Kc2 {[%emt 0:00:01]} Rxd2+ {[%emt 0:02:40]} 21. Kxd2 {[%emt 0:00:09]} Qd7+ {[%emt 0:00:38]} 22. Kc3 {[%emt 0:02:11]} Ne4+ {[%emt 0:00:42]} 23. Kc2 {[%emt 0:00:42]} Qd2+ {[%emt 0:02:00]} 24. Kb3 {[%emt 0:00:01]} Re5 {[%emt 0:01:24]} 25. a4 {[%emt 0:03:03]} f5 {[%emt 0:00:41]} 26. Bc4 {[%emt 0:00:28]} Bxh1 27. Rxh1 {[%emt 0:00:18]} Nxf2 {[%emt 0:00:53]} 28. Rb1 {[%emt 0:00:49]} Nd3 {[%emt 0:00:39]} 29. Qa8+ {[%emt 0:00:28]} Kc7 {[%emt 0:00:01]} 30. Qf8 {[%emt 0:00:06]} Nc5+ {[%emt 0:00:38]} 31. Ka2 {[%emt 0:00:26]} Qb4 {[%emt 0:00:36]} 32. b3 {[%emt 0:00:39]} Qd2+ {[%emt 0:00:49]} 33. Rb2 {[%emt 0:00:05]} Qd7 {[%emt 0:00:32]} 34. g4 {[%emt 0:01:12]} g6 {[%emt 0:00:29]} 35. gxf5 {[%emt 0:00:48]} Rxf5 {[%emt 0:00:05]} 36. Qh6 {[%emt 0:00:17]} b5 {[%emt 0:00:47]} 37. Rd2 {[%emt 0:00:25]} Qe8 {[%emt 0:00:43]} 38. Qxh7+ {[%emt 0:00:28]} Kb8 {[%emt 0:00:32]} 39. axb5 {[%emt 0:00:27]} cxb5 {[%emt 0:00:01]} 40. Bxb5 {[%emt 0:00:14]} Qf8 {[%emt 0:00:58]} 41. Qxg6 {[%emt 0:31:15]} Rf6 {[%emt 0:02:35]} 42. Qg3+ {[%emt 0:00:00]} Kb7 {[%emt 0:00:15]} 43. Qe5 {[%emt 0:00:00]} Re6 {[%emt 0:02:41]} 44. Qd5+ {[%emt 0:00:00]} Kb6 {[%emt 0:00:00]} 45. Bc4 {[%emt 0:00:00]} Qe7 {[%emt 0:03:56]} 46. Qa8 {[%emt 0:00:00]} Rf6 {[%emt 0:07:07]} 47. Qd5 {[%emt 0:00:00]} Rg6 {[%emt 0:02:58]} 48. b4 {[%emt 0:00:00]} Nb7 {[%emt 0:02:17]} 49. Rc2 {[%emt 0:00:55]} Rc6 {[%emt 0:00:52]} 50. Rf2 {[%emt 0:00:44]} Nd6 {[%emt 0:02:09]} 51. Qa5+ {[%emt 0:00:28]} Kb7 {[%emt 0:00:04]} 52. Bd5 {[%emt 0:00:11]} Kb8 {[%emt 0:01:18]} 53. Bxc6 1-0

[Event "41st Jacques-Lemans-Open 2022"]
[Site "St. Veit/Glan"]
[Date "2022.07.14"]
[Round "7.7"]
[White "Frank, Emanuel"]
[Black "Navaratnam, Rohan Shan Tze"]
[Result "1/2-1/2"]
[ECO "D32"]
[WhiteElo "2160"]
[BlackElo "2071"]
[Annotator "ChessBase"]
[PlyCount "120"]
[EventDate "2022.07.09"]
[EventType "swiss"]
[EventCountry "AUT"]
[SourceTitle "playchess.com"]
[Source "ChessBase"]
[SourceQuality "1"]
[TimeControl "40/5400+30:1800+30"]

1. d4 {[%emt 0:00:04]} d5 {[%emt 0:00:11]} 2. c4 {[%emt 0:00:06]} e6 3. Nc3 {[%emt 0:00:11]} c5 {[%emt 0:00:27]} 4. cxd5 {[%emt 0:00:05]} exd5 {[%emt 0:00:03]} 5. Nf3 {[%emt 0:00:18]} Nc6 {[%emt 0:00:07]} 6. dxc5 {[%emt 0:00:29]} d4 {[%emt 0:00:08]} 7. Na4 {[%emt 0:00:04]} Bxc5 {[%emt 0:00:13]} 8. Nxc5 {[%emt 0:00:07]} Qa5+ {[%emt 0:00:02]} 9. Bd2 {[%emt 0:00:09]} Qxc5 {[%emt 0:00:05]} 10. Rc1 {[%emt 0:01:24]} Qb6 {[%emt 0:00:25]} 11. e3 {[%emt 0:00:28]} Nf6 {[%emt 0:10:11]} 12. Bc4 {[%emt 0:05:10]} O-O {[%emt 0:05:06]} 13. O-O {[%emt 0:03:24]} Bg4 {[%emt 0:16:18]} 14. exd4 {[%emt 0:03:43]} Bxf3 {[%emt 0:00:23]} 15. Qxf3 {[%emt 0:01:14]} Nxd4 {[%emt 0:00:09]} 16. Qa3 {[%emt 0:07:41]} Ng4 {[%emt 0:12:42]} 17. Qg3 {[%emt 0:06:18]} Nf6 {[%emt 0:02:48]} 18. Rfe1 {[%emt 0:16:54]} Qxb2 {[%emt 0:13:32]} 19. Bg5 {[%emt 0:18:56]} Ne6 {[%emt 0:06:44]} 20. Rb1 {[%emt 0:07:09]} Qd4 {[%emt 0:00:40]} 21. Bxf6 {[%emt 0:09:55]} Qxf6 {[%emt 0:00:04]} 22. Rxb7 {[%emt 0:03:12]} Qd4 {[%emt 0:05:45]} 23. Bxe6 {[%emt 0:05:27]} fxe6 {[%emt 0:00:03]} 24. h3 {[%emt 0:00:33]} Rac8 {[%emt 0:01:08]} 25. Rxe6 {[%emt 0:07:34]} Rxf2 {[%emt 0:13:44]} 26. Qxg7+ {[%emt 0:01:20]} Qxg7 {[%emt 0:00:16]} 27. Rxg7+ {[%emt 0:00:03]} Kxg7 {[%emt 0:00:20]} 28. Kxf2 {[%emt 0:00:02]} a5 {[%emt 0:00:41]} 29. Kf3 {[%emt 0:01:12]} Rc4 {[%emt 0:03:06]} 30. Re4 {[%emt 0:01:07]} Rc3+ {[%emt 0:00:03]} 31. Re3 {[%emt 0:00:30]} Rc4 {[%emt 0:00:02]} 32. g4 {[%emt 0:00:42]} Ra4 {[%emt 0:03:29]} 33. a3 {[%emt 0:00:31]} Kg6 {[%emt 0:01:21]} 34. Kg3 {[%emt 0:00:41]} h5 {[%emt 0:03:05]} 35. gxh5+ {[%emt 0:00:39]} Kxh5 {[%emt 0:00:03]} 36. Kf2 {[%emt 0:00:32]} Kg5 {[%emt 0:02:19]} 37. Rf3 {[%emt 0:00:21]} Re4 {[%emt 0:01:23]} 38. Kg2 {[%emt 0:00:42]} Rc4 {[%emt 0:01:42]} 39. Kf1 {[%emt 0:00:25]} Rc2 {[%emt 0:00:39]} 40. Rd3 {[%emt 0:00:32]} Kf4 {[%emt 0:00:21]} 41. Ke1 {[%emt 0:06:22]} Rh2 {[%emt 0:02:30]} 42. Kd1 {[%emt 0:01:01]} Ke4 {[%emt 0:00:12]} 43. Rg3 {[%emt 0:01:16]} Kd4 {[%emt 0:00:13]} 44. Ke1 {[%emt 0:00:43]} Ke4 {[%emt 0:04:06]} 45. Kf1 {[%emt 0:00:45]} Kf4 {[%emt 0:00:55]} 46. Rc3 {[%emt 0:00:50]} Ra2 {[%emt 0:01:09]} 47. Kg1 {[%emt 0:00:33]} Rb2 {[%emt 0:00:26]} 48. h4 {[%emt 0:05:11]} Kg4 {[%emt 0:02:02]} 49. Rc4+ {[%emt 0:00:11]} Kf3 {[%emt 0:04:41]} 50. h5 {[%emt 0:07:36]} Rb1+ {[%emt 0:05:41]} 51. Kh2 {[%emt 0:00:02]} Rb5 {[%emt 0:00:01]} 52. Rc3+ {[%emt 0:03:46]} Kg4 {[%emt 0:00:03]} 53. h6 {[%emt 0:00:23]} Rh5+ {[%emt 0:00:02]} 54. Kg2 {[%emt 0:00:05]} Rxh6 {[%emt 0:00:05]} 55. Rc4+ {[%emt 0:00:03]} Kf5 {[%emt 0:00:07]} 56. Rc5+ {[%emt 0:00:03]} Ke4 {[%emt 0:00:06]} 57. Rxa5 {[%emt 0:00:13]} Rf6 {[%emt 0:00:05]} 58. a4 {[%emt 0:01:34]} Kd4 {[%emt 0:00:50]} 59. Ra8 {[%emt 0:00:38]} Kc5 {[%emt 0:00:07]} 60. a5 {[%emt 0:00:04]} Kb5 {[%emt 0:00:03]} 1/2-1/2

[Event "41st Jacques-Lemans-Open 2022"]
[Site "St. Veit/Glan"]
[Date "2022.07.14"]
[Round "7.8"]
[White "Bethke, Robert"]
[Black "Praznik, Niko"]
[Result "0-1"]
[ECO "A40"]
[WhiteElo "2070"]
[BlackElo "2325"]
[Annotator "ChessBase"]
[PlyCount "80"]
[EventDate "2022.07.09"]
[EventType "swiss"]
[EventCountry "AUT"]
[SourceTitle "playchess.com"]
[Source "ChessBase"]
[SourceQuality "1"]
[TimeControl "40/5400+30:1800+30"]

1. d4 {[%emt 0:00:03]} g6 {[%emt 0:04:53]} 2. c4 {[%emt 0:00:05]} Bg7 {[%emt 0:00:06]} 3. Nf3 {[%emt 0:00:22]} d6 {[%emt 0:00:22]} 4. Nc3 {[%emt 0:00:05]} Nd7 {[%emt 0:00:18]} 5. e4 {[%emt 0:00:26]} e5 {[%emt 0:00:22]} 6. d5 {[%emt 0:01:38]} a5 {[%emt 0:02:56]} 7. Be2 {[%emt 0:00:36]} Ngf6 {[%emt 0:00:28]} 8. Rb1 {[%emt 0:01:59]} Nc5 {[%emt 0:01:08]} 9. Qc2 {[%emt 0:00:30]} Nfxe4 {[%emt 0:01:46]} 10. Nxe4 {[%emt 0:01:08]} Nxe4 {[%emt 0:01:04]} 11. O-O {[%emt 0:00:04]} Nc5 {[%emt 0:01:44]} 12. Ra1 {[%emt 0:01:43]} Bf5 {[%emt 0:00:36]} 13. Qd1 {[%emt 0:00:05]} O-O {[%emt 0:00:30]} 14. Be3 {[%emt 0:00:23]} b6 {[%emt 0:00:27]} 15. b3 {[%emt 0:01:31]} h6 {[%emt 0:03:42]} 16. a3 {[%emt 0:00:54]} Bg4 {[%emt 0:06:34]} 17. Rc1 {[%emt 0:02:06]} f5 {[%emt 0:01:58]} 18. b4 {[%emt 0:01:32]} axb4 {[%emt 0:01:57]} 19. axb4 {[%emt 0:00:05]} Ne4 {[%emt 0:00:19]} 20. h3 {[%emt 0:01:53]} Bxf3 {[%emt 0:06:13]} 21. Bxf3 {[%emt 0:02:11]} Ng5 {[%emt 0:01:13]} 22. Bxg5 {[%emt 0:00:08]} Qxg5 {[%emt 0:00:08]} 23. c5 {[%emt 0:00:18]} bxc5 {[%emt 0:01:31]} 24. bxc5 {[%emt 0:00:04]} e4 {[%emt 0:04:20]} 25. Be2 {[%emt 0:00:11]} Rf7 {[%emt 0:08:26]} 26. cxd6 {[%emt 0:00:24]} cxd6 {[%emt 0:00:01]} 27. Qb3 {[%emt 0:02:28]} Be5 {[%emt 0:04:45]} 28. Rc4 {[%emt 0:00:59]} h5 {[%emt 0:07:29]} 29. Rb1 {[%emt 0:19:39]} h4 {[%emt 0:02:51]} 30. Qe3 {[%emt 0:07:14]} Qxe3 {[%emt 0:02:47]} 31. fxe3 {[%emt 0:00:05]} Ra3 {[%emt 0:00:06]} 32. Rc8+ {[%emt 0:00:42]} Kh7 {[%emt 0:00:18]} 33. Rbb8 {[%emt 0:04:07]} Rxe3 {[%emt 0:00:11]} 34. Kf1 {[%emt 0:00:15]} Ra3 {[%emt 0:00:30]} 35. Bb5 {[%emt 0:00:13]} Rfa7 {[%emt 0:02:02]} 36. Rc2 {[%emt 0:01:31]} Ra1+ {[%emt 0:02:21]} 37. Ke2 {[%emt 0:00:28]} Rg1 {[%emt 0:00:09]} 38. Rcc8 {[%emt 0:01:20]} Ra2+ {[%emt 0:00:21]} 39. Ke3 {[%emt 0:00:03]} Re1+ {[%emt 0:00:12]} 40. Be2 {[%emt 0:00:05]} Rexe2# {[%emt 0:00:05]} 0-1

[Event "41st Jacques-Lemans-Open 2022"]
[Site "St. Veit/Glan"]
[Date "2022.07.14"]
[Round "7.9"]
[White "Sandhoefner, Florian"]
[Black "Rogic, Davor"]
[Result "1/2-1/2"]
[ECO "D02"]
[WhiteElo "2289"]
[BlackElo "2474"]
[Annotator "ChessBase"]
[PlyCount "100"]
[EventDate "2022.07.09"]
[EventType "swiss"]
[EventCountry "AUT"]
[SourceTitle "playchess.com"]
[Source "ChessBase"]
[SourceQuality "1"]
[TimeControl "40/5400+30:1800+30"]

1. d4 {[%emt 0:00:30]} Nf6 {[%emt 0:00:27]} 2. Nf3 {[%emt 0:00:04]} d5 {[%emt 0:02:27]} 3. Bf4 {[%emt 0:00:05]} e6 {[%emt 0:00:34]} 4. e3 {[%emt 0:00:14]} Bd6 {[%emt 0:00:08]} 5. c3 {[%emt 0:00:18]} O-O {[%emt 0:00:43]} 6. Nbd2 {[%emt 0:00:13]} c5 {[%emt 0:01:01]} 7. Bxd6 {[%emt 0:00:10]} Qxd6 {[%emt 0:00:06]} 8. Bd3 {[%emt 0:00:10]} Nc6 {[%emt 0:01:03]} 9. O-O {[%emt 0:00:06]} e5 {[%emt 0:00:29]} 10. dxc5 {[%emt 0:00:11]} Qxc5 {[%emt 0:00:19]} 11. e4 {[%emt 0:00:06]} Bg4 {[%emt 0:06:01]} 12. Qc2 {[%emt 0:06:04]} Rad8 {[%emt 0:05:47]} 13. Rfe1 {[%emt 0:04:08]} Rfe8 {[%emt 0:08:04]} 14. b4 {[%emt 0:09:17]} Qd6 {[%emt 0:04:54]} 15. exd5 {[%emt 0:03:10]} Qxd5 {[%emt 0:01:42]} 16. Bc4 {[%emt 0:00:22]} Qd7 {[%emt 0:01:30]} 17. Rad1 {[%emt 0:10:24]} Qc7 {[%emt 0:12:53]} 18. Ne4 {[%emt 0:03:50]} Bxf3 {[%emt 0:20:07]} 19. gxf3 {[%emt 0:04:40]} Nxe4 {[%emt 0:06:12]} 20. fxe4 {[%emt 0:01:59]} Ne7 {[%emt 0:01:11]} 21. Qb3 {[%emt 0:02:56]} Ng6 {[%emt 0:00:24]} 22. Bd5 {[%emt 0:00:20]} Nf4 {[%emt 0:00:51]} 23. c4 {[%emt 0:00:55]} Rd6 {[%emt 0:10:39]} 24. Kh1 {[%emt 0:02:53]} Rh6 {[%emt 0:01:10]} 25. Rg1 {[%emt 0:02:11]} Qe7 {[%emt 0:00:45]} 26. Qg3 {[%emt 0:02:37]} Rg6 {[%emt 0:01:32]} 27. Qb3 {[%emt 0:00:39]} Rh6 {[%emt 0:01:03]} 28. Qg3 {[%emt 0:00:44]} Rg6 {[%emt 0:01:23]} 29. Qb3 {[%emt 0:00:05]} Rf6 {[%emt 0:00:11]} 30. Qg3 {[%emt 0:02:15]} g6 {[%emt 0:01:21]} 31. Qe3 {[%emt 0:08:10]} Qxb4 {[%emt 0:04:37]} 32. Rb1 {[%emt 0:00:21]} Qa4 {[%emt 0:01:40]} 33. Rxb7 {[%emt 0:00:49]} Nxd5 {[%emt 0:01:21]} 34. cxd5 {[%emt 0:00:16]} Qxa2 {[%emt 0:00:17]} 35. Kg2 {[%emt 0:04:18]} a5 {[%emt 0:01:23]} 36. Rgb1 {[%emt 0:01:18]} Rc8 {[%emt 0:00:48]} 37. Rb8 {[%emt 0:01:40]} Rxb8 {[%emt 0:01:14]} 38. Rxb8+ {[%emt 0:00:02]} Kg7 {[%emt 0:00:00]} 39. Qc5 {[%emt 0:02:22]} Kh6 {[%emt 0:00:25]} 40. Re8 {[%emt 0:02:41]} Qe2 {[%emt 0:02:57]} 41. Rxe5 {[%emt 0:34:00]} Qf3+ {[%emt 0:01:38]} 42. Kg1 {[%emt 0:00:00]} g5 {[%emt 0:06:50]} 43. Rf5 {[%emt 0:00:00]} Rxf5 {[%emt 0:02:00]} 44. exf5 {[%emt 0:00:00]} a4 {[%emt 0:02:01]} 45. Qf8+ {[%emt 0:00:00]} Kh5 {[%emt 0:00:05]} 46. Qxf7+ {[%emt 0:00:00]} Kg4 {[%emt 0:00:51]} 47. f6 {[%emt 0:00:00]} Qd1+ {[%emt 0:02:07]} 48. Kg2 {[%emt 0:00:00]} Qf3+ {[%emt 0:00:36]} 49. Kg1 {[%emt 0:00:00]} Qd1+ {[%emt 0:00:02]} 50. Kg2 {[%emt 0:00:00]} Qf3+ {[%emt 0:00:01]} 1/2-1/2

[Event "41st Jacques-Lemans-Open 2022"]
[Site "St. Veit/Glan"]
[Date "2022.07.14"]
[Round "7.11"]
[White "Schernthaner, David"]
[Black "Miazhynski, Michael"]
[Result "1-0"]
[ECO "A58"]
[WhiteElo "2319"]
[BlackElo "1994"]
[Annotator "ChessBase"]
[PlyCount "59"]
[EventDate "2022.07.09"]
[EventType "swiss"]
[EventCountry "AUT"]
[SourceTitle "playchess.com"]
[Source "ChessBase"]
[SourceQuality "1"]
[TimeControl "40/5400+30:1800+30"]

1. d4 {[%emt 0:00:02]} Nf6 {[%emt 0:00:39]} 2. c4 {[%emt 0:00:03]} c5 {[%emt 0:00:56]} 3. d5 {[%emt 0:00:07]} b5 {[%emt 0:00:43]} 4. cxb5 {[%emt 0:00:40]} a6 {[%emt 0:00:28]} 5. bxa6 {[%emt 0:00:05]} g6 {[%emt 0:00:16]} 6. Nc3 {[%emt 0:00:30]} Bg7 {[%emt 0:00:14]} 7. a7 {[%emt 0:02:55]} Rxa7 {[%emt 0:00:13]} 8. e4 {[%emt 0:00:16]} O-O {[%emt 0:01:02]} 9. Nf3 {[%emt 0:01:18]} e6 {[%emt 0:08:01]} 10. Be2 {[%emt 0:05:39]} exd5 {[%emt 0:05:19]} 11. exd5 {[%emt 0:00:04]} d6 {[%emt 0:01:56]} 12. O-O {[%emt 0:00:17]} Ba6 {[%emt 0:08:51]} 13. Nb5 {[%emt 0:15:18]} Rd7 {[%emt 0:06:34]} 14. Re1 {[%emt 0:10:14]} Bb7 {[%emt 0:02:29]} 15. Bc4 {[%emt 0:01:25]} Na6 {[%emt 0:00:54]} 16. Bg5 {[%emt 0:02:04]} Qa8 {[%emt 0:01:25]} 17. Bxf6 {[%emt 0:04:36]} Bxf6 {[%emt 0:00:46]} 18. Qd2 {[%emt 0:00:12]} Nb4 {[%emt 0:08:41]} 19. Rad1 {[%emt 0:08:44]} Rb8 {[%emt 0:09:33]} 20. Nc3 {[%emt 0:10:23]} Bg7 {[%emt 0:15:24]} 21. a3 {[%emt 0:01:43]} Ba6 {[%emt 0:02:34]} 22. axb4 {[%emt 0:07:00]} Bxc4 {[%emt 0:00:14]} 23. bxc5 {[%emt 0:00:11]} Bxc3 {[%emt 0:11:48]} 24. bxc3 {[%emt 0:04:13]} dxc5 {[%emt 0:00:17]} 25. d6 {[%emt 0:01:42]} Rbd8 {[%emt 0:01:25]} 26. Qf4 {[%emt 0:02:10]} Bb3 {[%emt 0:03:11]} 27. Rd2 {[%emt 0:00:45]} Qa6 {[%emt 0:00:38]} 28. Qf6 {[%emt 0:06:05]} Rxd6 {[%emt 0:01:16]} 29. Rxd6 {[%emt 0:00:45]} Qxd6 {[%emt 0:01:16]} 30. Re8+ {[%emt 0:00:18]} 1-0